[Event "*** SCC Grand Prix: Titled Tuesday Blitz"]
[Site "Chess.com"]
[Date "2020.10.13"]
[Round "9"]
[White "Harsha_Bharathakoti"]
[Black "Oleksandr_Bortnyk"]
[Result "0-1"]
[WhiteElo "2769"]
[BlackElo "2896"]
[TimeControl "180+1"]
[EndTime "11:45:59 PDT"]
[Termination "Oleksandr_Bortnyk won on time"]

1. d4 {[%clk 0:02:57]} 1... d6 {[%clk 0:02:56.3]} 2. e4 {[%clk 0:02:56.5]} 2...
Nf6 {[%clk 0:02:54.4]} 3. Nc3 {[%clk 0:02:56.6]} 3... e5 {[%clk 0:02:55.3]} 4.
Nf3 {[%clk 0:02:55]} 4... exd4 {[%clk 0:02:56.2]} 5. Nxd4 {[%clk 0:02:55.9]}
5... Be7 {[%clk 0:02:56.2]} 6. Bf4 {[%clk 0:02:54.1]} 6... O-O {[%clk
0:02:55.4]} 7. Qd2 {[%clk 0:02:53.9]} 7... a6 {[%clk 0:02:48.5]} 8. O-O-O {[%clk
0:02:44.2]} 8... b5 {[%clk 0:02:35.6]} 9. f3 {[%clk 0:02:43.3]} 9... b4 {[%clk
0:02:22]} 10. Nd5 {[%clk 0:02:21.3]} 10... Nxd5 {[%clk 0:02:20]} 11. exd5 {[%clk
0:02:22.2]} 11... a5 {[%clk 0:02:13.5]} 12. h4 {[%clk 0:02:11.3]} 12... Bf6
{[%clk 0:01:54.3]} 13. g4 {[%clk 0:02:03.6]} 13... a4 {[%clk 0:01:27.2]} 14.
Qxb4 {[%clk 0:01:27.6]} 14... a3 {[%clk 0:01:26.2]} 15. b3 {[%clk 0:01:27.7]}
15... Na6 {[%clk 0:01:20.5]} 16. Qd2 {[%clk 0:01:26.7]} 16... Nc5 {[%clk
0:01:14.4]} 17. g5 {[%clk 0:01:03.8]} 17... Bxd4 {[%clk 0:01:13.7]} 18. Qxd4
{[%clk 0:01:03.6]} 18... Bf5 {[%clk 0:01:14.6]} 19. h5 {[%clk 0:00:50]} 19... f6
{[%clk 0:01:00.4]} 20. h6 {[%clk 0:00:43.1]} 20... g6 {[%clk 0:00:59.7]} 21. Bc4
{[%clk 0:00:27.6]} 21... Rf7 {[%clk 0:00:31.1]} 22. gxf6 {[%clk 0:00:27.5]}
22... Qxf6 {[%clk 0:00:13.7]} 23. Be3 {[%clk 0:00:26.4]} 23... Nd7 {[%clk
0:00:11.7]} 24. Rde1 {[%clk 0:00:20.6]} 24... Ne5 {[%clk 0:00:11.4]} 25. f4
{[%clk 0:00:10.5]} 25... Nxc4 {[%clk 0:00:11.5]} 26. Qxf6 {[%clk 0:00:10.9]}
26... Rxf6 {[%clk 0:00:12.4]} 27. bxc4 {[%clk 0:00:11.8]} 27... Rff8 {[%clk
0:00:09.7]} 28. Bd4 {[%clk 0:00:11.7]} 28... Kf7 {[%clk 0:00:10.1]} 29. Kd2
{[%clk 0:00:09.5]} 29... Rab8 {[%clk 0:00:08.2]} 30. Re3 {[%clk 0:00:07.8]}
30... Rfe8 {[%clk 0:00:08.1]} 31. Rhe1 {[%clk 0:00:05]} 31... Rxe3 {[%clk
0:00:07.9]} 32. Rxe3 {[%clk 0:00:05.9]} 32... Rb4 {[%clk 0:00:08.4]} 33. Rxa3
{[%clk 0:00:03]} 33... Rxc4 {[%clk 0:00:08.8]} 34. c3 {[%clk 0:00:03.7]} 34...
Be4 {[%clk 0:00:09.2]} 35. Ra5 {[%clk 0:00:02.6]} 35... g5 {[%clk 0:00:05.2]}
36. fxg5 {[%clk 0:00:02.6]} 36... Kg6 {[%clk 0:00:05.9]} 37. Ke3 {[%clk
0:00:03.4]} 37... Bh1 {[%clk 0:00:02.2]} 38. Kf4 {[%clk 0:00:02.6]} 38... Bg2
{[%clk 0:00:02.6]} 39. Ra8 {[%clk 0:00:02.1]} 39... Bxd5 {[%clk 0:00:02.6]} 40.
Rf8 {[%clk 0:00:02.4]} 40... c5 {[%clk 0:00:02.1]} 41. Rf6+ {[%clk 0:00:03.1]}
41... Kh5 {[%clk 0:00:02.6]} 42. Rxd6 {[%clk 0:00:02.1]} 42... cxd4 {[%clk
0:00:02.9]} 43. cxd4 {[%clk 0:00:01.5]} 43... Bf7 {[%clk 0:00:02.5]} 44. Ke5
{[%clk 0:00:02.1]} 44... Ra4 {[%clk 0:00:03]} 45. Rd7 {[%clk 0:00:02.1]} 45...
Bg6 {[%clk 0:00:03.2]} 46. d5 {[%clk 0:00:02.9]} 46... Kxg5 {[%clk 0:00:03.3]}
47. d6 {[%clk 0:00:03.8]} 47... Ra5+ {[%clk 0:00:03.8]} 48. Kd4 {[%clk
0:00:02.5]} 48... Kf6 {[%clk 0:00:03.9]} 49. Re7 {[%clk 0:00:02.5]} 49... Rxa2
{[%clk 0:00:03.9]} 50. Re1 {[%clk 0:00:02.1]} 50... Rd2+ {[%clk 0:00:04.1]} 51.
Kc5 {[%clk 0:00:03]} 51... Bf5 {[%clk 0:00:04.4]} 52. Kc6 {[%clk 0:00:02.5]}
52... Rc2+ {[%clk 0:00:03.8]} 53. Kd5 {[%clk 0:00:02.4]} 53... Rh2 {[%clk
0:00:03.7]} 54. Kc6 {[%clk 0:00:03.3]} 54... Rc2+ {[%clk 0:00:03.4]} 55. Kd5
{[%clk 0:00:03.6]} 55... Kg5 {[%clk 0:00:04.1]} 56. Rf1 {[%clk 0:00:03.3]} 56...
Bg4 {[%clk 0:00:04.3]} 57. Rg1 {[%clk 0:00:02]} 57... Kf4 {[%clk 0:00:04.6]} 58.
Rf1+ {[%clk 0:00:01.2]} 58... Kg5 {[%clk 0:00:05.1]} 59. Rg1 {[%clk 0:00:01.9]}
59... Kh5 {[%clk 0:00:05.2]} 60. Rh1+ {[%clk 0:00:02.1]} 60... Kg6 {[%clk
0:00:05.8]} 61. Rg1 {[%clk 0:00:03]} 61... Rd2+ {[%clk 0:00:05.6]} 62. Kc6
{[%clk 0:00:03.2]} 62... Kg5 {[%clk 0:00:06.2]} 63. Kc7 {[%clk 0:00:02.5]} 63...
Kf4 {[%clk 0:00:04.9]} 64. Rf1+ {[%clk 0:00:02.5]} 64... Ke5 {[%clk 0:00:05.3]}
65. Re1+ {[%clk 0:00:03]} 65... Kf6 {[%clk 0:00:05.8]} 66. Rf1+ {[%clk
0:00:03.4]} 66... Bf5 {[%clk 0:00:06.4]} 67. Kc6 {[%clk 0:00:02.6]} 67... Kg6
{[%clk 0:00:02.8]} 68. Kc7 {[%clk 0:00:01.2]} 68... Be6 {[%clk 0:00:02.7]} 0-1

[Event "*** SCC Grand Prix: Titled Tuesday Blitz"]
[Site "Chess.com"]
[Date "2020.10.13"]
[Round "9"]
[White "nrvisakh"]
[Black "shrek4life02"]
[Result "1-0"]
[WhiteElo "2793"]
[BlackElo "2585"]
[TimeControl "180+1"]
[EndTime "11:46:00 PDT"]
[Termination "nrvisakh won on time"]

1. e4 {[%clk 0:03:00.9]} 1... c6 {[%clk 0:03:00.3]} 2. d4 {[%clk 0:02:55.6]}
2... d5 {[%clk 0:03:01]} 3. exd5 {[%clk 0:02:55.2]} 3... cxd5 {[%clk 0:03:01.9]}
4. Bd3 {[%clk 0:02:55]} 4... Nf6 {[%clk 0:03:02.4]} 5. c3 {[%clk 0:02:54.9]}
5... Nc6 {[%clk 0:03:03.1]} 6. Bf4 {[%clk 0:02:51.2]} 6... e6 {[%clk 0:03:00.9]}
7. Nf3 {[%clk 0:02:44.5]} 7... Bd6 {[%clk 0:03:01.4]} 8. Bxd6 {[%clk 0:02:41]}
8... Qxd6 {[%clk 0:03:02.3]} 9. O-O {[%clk 0:02:41.7]} 9... Ne4 {[%clk
0:02:55.2]} 10. Re1 {[%clk 0:01:57.1]} 10... f5 {[%clk 0:02:54]} 11. Qe2 {[%clk
0:01:50.2]} 11... O-O {[%clk 0:02:53.2]} 12. Nbd2 {[%clk 0:01:48.7]} 12... Bd7
{[%clk 0:02:51.1]} 13. Nf1 {[%clk 0:01:47.1]} 13... Be8 {[%clk 0:02:42.4]} 14.
N3d2 {[%clk 0:01:46.6]} 14... Rf6 {[%clk 0:02:20.4]} 15. f3 {[%clk 0:01:36.6]}
15... Bh5 {[%clk 0:02:01]} 16. Nb3 {[%clk 0:01:26.7]} 16... Qf4 {[%clk
0:01:38.5]} 17. Qe3 {[%clk 0:01:22.1]} 17... Qxe3+ {[%clk 0:01:38.1]} 18. Rxe3
{[%clk 0:01:21.4]} 18... f4 {[%clk 0:01:34.4]} 19. Re2 {[%clk 0:01:19.1]} 19...
Nd6 {[%clk 0:01:35]} 20. Nc5 {[%clk 0:01:12.9]} 20... Re8 {[%clk 0:01:35.5]} 21.
Rae1 {[%clk 0:01:12]} 21... Bf7 {[%clk 0:01:35.9]} 22. Nd2 {[%clk 0:00:55.5]}
22... b6 {[%clk 0:01:35.9]} 23. Nd7 {[%clk 0:00:55.7]} 23... Rh6 {[%clk
0:01:33.8]} 24. Ne5 {[%clk 0:00:54.4]} 24... Nxe5 {[%clk 0:01:30.7]} 25. Rxe5
{[%clk 0:00:55]} 25... Rc8 {[%clk 0:01:23.4]} 26. a4 {[%clk 0:00:52.7]} 26...
Rf6 {[%clk 0:01:23.3]} 27. Ra1 {[%clk 0:00:52]} 27... a5 {[%clk 0:01:20.1]} 28.
Ree1 {[%clk 0:00:47.3]} 28... Be8 {[%clk 0:01:20.3]} 29. Ra3 {[%clk 0:00:44.6]}
29... Bd7 {[%clk 0:01:20.4]} 30. b4 {[%clk 0:00:42.8]} 30... Ra8 {[%clk
0:01:10.3]} 31. bxa5 {[%clk 0:00:38.9]} 31... Rxa5 {[%clk 0:01:11.2]} 32. Rea1
{[%clk 0:00:39]} 32... Rf8 {[%clk 0:01:09.7]} 33. Nb3 {[%clk 0:00:39.1]} 33...
Ra7 {[%clk 0:01:10.4]} 34. a5 {[%clk 0:00:39.6]} 34... Rfa8 {[%clk 0:01:06.7]}
35. a6 {[%clk 0:00:39.9]} 35... Bc8 {[%clk 0:01:06.8]} 36. Bf1 {[%clk
0:00:33.4]} 36... Nc4 {[%clk 0:01:01.6]} 37. Bxc4 {[%clk 0:00:32.1]} 37... dxc4
{[%clk 0:01:02.5]} 38. Nd2 {[%clk 0:00:32.7]} 38... b5 {[%clk 0:01:00.9]} 39.
Rb1 {[%clk 0:00:26.7]} 39... Rxa6 {[%clk 0:01:01.4]} 40. Rxa6 {[%clk 0:00:26.7]}
40... Bxa6 {[%clk 0:01:02.3]} 41. Ne4 {[%clk 0:00:27.1]} 41... Bb7 {[%clk
0:00:58.4]} 42. Nc5 {[%clk 0:00:16.9]} 42... Bc6 {[%clk 0:00:52.6]} 43. Nxe6
{[%clk 0:00:14.6]} 43... Ra3 {[%clk 0:00:49.7]} 44. Rc1 {[%clk 0:00:14.7]} 44...
b4 {[%clk 0:00:45.1]} 45. cxb4 {[%clk 0:00:13.7]} 45... c3 {[%clk 0:00:45.8]}
46. Nxf4 {[%clk 0:00:13.4]} 46... Ba4 {[%clk 0:00:46]} 47. Ne2 {[%clk 0:00:09]}
47... c2 {[%clk 0:00:46.3]} 48. Kf2 {[%clk 0:00:07.8]} 48... Rb3 {[%clk
0:00:46.7]} 49. Rxc2 {[%clk 0:00:06.9]} 49... Rxb4 {[%clk 0:00:47.3]} 50. Rc8+
{[%clk 0:00:06.3]} 50... Kf7 {[%clk 0:00:47.8]} 51. Rc7+ {[%clk 0:00:07.2]}
51... Kf6 {[%clk 0:00:48.2]} 52. g4 {[%clk 0:00:07.5]} 52... Rb2 {[%clk
0:00:48.6]} 53. Ke3 {[%clk 0:00:07.4]} 53... Rb3+ {[%clk 0:00:48.2]} 54. Nc3
{[%clk 0:00:07.2]} 54... Be8 {[%clk 0:00:44.8]} 55. Kf4 {[%clk 0:00:06.6]} 55...
Ra3 {[%clk 0:00:40.1]} 56. Ne4+ {[%clk 0:00:06.2]} 56... Ke6 {[%clk 0:00:40.8]}
57. Rxg7 {[%clk 0:00:06.1]} 57... Bg6 {[%clk 0:00:41.5]} 58. h4 {[%clk
0:00:06.1]} 58... Ra4 {[%clk 0:00:39.4]} 59. h5 {[%clk 0:00:06.4]} 59... Be8
{[%clk 0:00:38.8]} 60. Rxh7 {[%clk 0:00:06.1]} 60... Rxd4 {[%clk 0:00:39.4]} 61.
Rh6+ {[%clk 0:00:06.4]} 61... Kf7 {[%clk 0:00:39]} 62. Rb6 {[%clk 0:00:06.9]}
62... Ba4 {[%clk 0:00:38.1]} 63. Rb7+ {[%clk 0:00:06.3]} 63... Ke6 {[%clk
0:00:38.1]} 64. Rb6+ {[%clk 0:00:07.2]} 64... Kd5 {[%clk 0:00:38]} 65. h6 {[%clk
0:00:07.5]} 65... Rd3 {[%clk 0:00:37.4]} 66. Rd6+ {[%clk 0:00:07.3]} 66... Kc4
{[%clk 0:00:37.6]} 67. Rxd3 {[%clk 0:00:08.2]} 67... Kxd3 {[%clk 0:00:38.1]} 68.
h7 {[%clk 0:00:09.1]} 1-0

[Event "*** SCC Grand Prix: Titled Tuesday Blitz"]
[Site "Chess.com"]
[Date "2020.10.13"]
[Round "9"]
[White "Tenamu"]
[Black "Legendinunknown"]
[Result "0-1"]
[WhiteElo "2394"]
[BlackElo "2613"]
[TimeControl "180+1"]
[EndTime "11:46:01 PDT"]
[Termination "Legendinunknown won by resignation"]

1. d4 {[%clk 0:03:00.9]} 1... d5 {[%clk 0:02:59.2]} 2. Nc3 {[%clk 0:03:00.5]}
2... Nf6 {[%clk 0:02:58.8]} 3. Bf4 {[%clk 0:03:00.2]} 3... c5 {[%clk 0:02:56.3]}
4. e3 {[%clk 0:03:00.1]} 4... cxd4 {[%clk 0:02:54.3]} 5. exd4 {[%clk 0:02:59.9]}
5... a6 {[%clk 0:02:54.6]} 6. Nce2 {[%clk 0:02:54]} 6... Nc6 {[%clk 0:02:53.9]}
7. c3 {[%clk 0:02:52.9]} 7... Bg4 {[%clk 0:02:51.1]} 8. f3 {[%clk 0:02:52.7]}
8... Bf5 {[%clk 0:02:47.5]} 9. g4 {[%clk 0:02:50.8]} 9... Bg6 {[%clk 0:02:47.6]}
10. h4 {[%clk 0:02:50.7]} 10... h6 {[%clk 0:02:46]} 11. Ng3 {[%clk 0:02:50.4]}
11... e6 {[%clk 0:02:45.5]} 12. Bd3 {[%clk 0:02:50.4]} 12... Bxd3 {[%clk
0:02:43]} 13. Qxd3 {[%clk 0:02:51.3]} 13... Bd6 {[%clk 0:02:43]} 14. N1e2 {[%clk
0:02:51.2]} 14... Qc7 {[%clk 0:02:40.6]} 15. Qe3 {[%clk 0:02:50.1]} 15... O-O-O
{[%clk 0:02:33.1]} 16. O-O-O {[%clk 0:02:46]} 16... Rhe8 {[%clk 0:02:29.2]} 17.
Bxd6 {[%clk 0:02:42.4]} 17... Qxd6 {[%clk 0:02:25.4]} 18. g5 {[%clk 0:02:42.4]}
18... Ng8 {[%clk 0:02:21.9]} 19. f4 {[%clk 0:02:41.2]} 19... g6 {[%clk
0:02:18.9]} 20. Rde1 {[%clk 0:02:22]} 20... f6 {[%clk 0:02:06.6]} 21. gxh6
{[%clk 0:02:11.8]} 21... Nxh6 {[%clk 0:02:04]} 22. h5 {[%clk 0:02:11.8]} 22...
gxh5 {[%clk 0:01:49.5]} 23. Rxh5 {[%clk 0:02:11]} 23... Ng4 {[%clk 0:01:49.3]}
24. Qf3 {[%clk 0:02:10.6]} 24... f5 {[%clk 0:01:48.2]} 25. Ng1 {[%clk
0:02:06.7]} 25... Rh8 {[%clk 0:01:42.8]} 26. Nh3 {[%clk 0:02:00.2]} 26... Rxh5
{[%clk 0:01:38.6]} 27. Nxh5 {[%clk 0:01:59.9]} 27... Rh8 {[%clk 0:01:39]} 28.
Ng7 {[%clk 0:01:59.8]} 28... Rxh3 {[%clk 0:01:08.1]} 29. Qxh3 {[%clk 0:01:58.5]}
29... Qxf4+ {[%clk 0:01:07.8]} 30. Kb1 {[%clk 0:01:54.6]} 30... Qd2 {[%clk
0:01:06.8]} 31. Qh8+ {[%clk 0:01:51]} 31... Kd7 {[%clk 0:01:04.1]} 32. Qe8+
{[%clk 0:01:48.8]} 32... Kc7 {[%clk 0:01:00.3]} 33. Qxe6 {[%clk 0:01:48.6]}
33... Qd3+ {[%clk 0:00:32.1]} 34. Ka1 {[%clk 0:01:47.9]} 34... Nf2 {[%clk
0:00:13.8]} 35. Ne8+ {[%clk 0:01:44.9]} 35... Kb6 {[%clk 0:00:13.5]} 36. Qd6
{[%clk 0:01:37.8]} 36... Qc4 {[%clk 0:00:11.2]} 37. Rb1 {[%clk 0:01:34.4]} 37...
Ne4 {[%clk 0:00:10.5]} 38. Qc7+ {[%clk 0:01:34]} 38... Ka7 {[%clk 0:00:10.8]}
39. Nd6 {[%clk 0:01:27.6]} 39... Nxd6 {[%clk 0:00:10.8]} 40. Qxd6 {[%clk
0:01:28.5]} 40... Qd3 {[%clk 0:00:11.2]} 41. a3 {[%clk 0:01:23.4]} 41... Qe4
{[%clk 0:00:10.6]} 42. Rf1 {[%clk 0:01:16.1]} 42... Qd3 {[%clk 0:00:09.3]} 43.
Qf4 {[%clk 0:01:06.4]} 43... Na5 {[%clk 0:00:07.8]} 44. Rf2 {[%clk 0:00:20.2]}
44... Nb3+ {[%clk 0:00:07.7]} 45. Ka2 {[%clk 0:00:19.8]} 45... Qc4 {[%clk
0:00:08.1]} 46. Kb1 {[%clk 0:00:19.7]} 46... Qd3+ {[%clk 0:00:07.6]} 47. Ka2
{[%clk 0:00:19.6]} 47... Qd1 {[%clk 0:00:06.6]} 48. Rf1 {[%clk 0:00:17]} 48...
Qc2 {[%clk 0:00:06.2]} 49. Qf2 {[%clk 0:00:14.1]} 49... Nd2 {[%clk 0:00:05.3]}
50. Re1 {[%clk 0:00:11.8]} 50... Qb3+ {[%clk 0:00:05.3]} 51. Ka1 {[%clk
0:00:11.9]} 51... Nc4 {[%clk 0:00:05.5]} 52. Rb1 {[%clk 0:00:10.8]} 52... Nxa3
{[%clk 0:00:03.3]} 53. bxa3 {[%clk 0:00:10.6]} 53... Qxa3+ {[%clk 0:00:04]} 54.
Qa2 {[%clk 0:00:09.9]} 54... Qxc3+ {[%clk 0:00:04.5]} 55. Rb2 {[%clk 0:00:10.1]}
55... Qc1+ {[%clk 0:00:04.5]} 56. Qb1 {[%clk 0:00:10.1]} 56... Qc6 {[%clk
0:00:05.1]} 57. Rb3 {[%clk 0:00:08.2]} 57... f4 {[%clk 0:00:04.9]} 58. Qb2
{[%clk 0:00:06.8]} 58... Qa4+ {[%clk 0:00:05]} 59. Kb1 {[%clk 0:00:06.6]} 59...
Qc6 {[%clk 0:00:05.7]} 60. Rf3 {[%clk 0:00:06.6]} 60... Qg6+ {[%clk 0:00:05.3]}
61. Qc2 {[%clk 0:00:06.2]} 61... Qg1+ {[%clk 0:00:05.8]} 62. Ka2 {[%clk
0:00:04.9]} 62... Qxd4 {[%clk 0:00:06.2]} 63. Qb3 {[%clk 0:00:04.4]} 63... Qe4
{[%clk 0:00:05]} 64. Qc3 {[%clk 0:00:02.4]} 64... d4 {[%clk 0:00:05.1]} 65. Kb2
{[%clk 0:00:03.3]} 65... dxc3+ {[%clk 0:00:04.7]} 0-1

[Event "*** SCC Grand Prix: Titled Tuesday Blitz"]
[Site "Chess.com"]
[Date "2020.10.13"]
[Round "9"]
[White "KuzubovYuriy"]
[Black "Alexsur1981"]
[Result "1/2-1/2"]
[WhiteElo "2901"]
[BlackElo "2818"]
[TimeControl "180+1"]
[EndTime "11:46:03 PDT"]
[Termination "Game drawn by stalemate"]

1. d4 {[%clk 0:03:00.9]} 1... d5 {[%clk 0:02:59]} 2. c4 {[%clk 0:03:00.7]} 2...
e6 {[%clk 0:02:59.4]} 3. Nf3 {[%clk 0:03:00.7]} 3... c6 {[%clk 0:02:59.7]} 4.
Nbd2 {[%clk 0:02:56.9]} 4... Nf6 {[%clk 0:02:59.4]} 5. e3 {[%clk 0:02:56.4]}
5... Nbd7 {[%clk 0:02:59.5]} 6. Bd3 {[%clk 0:02:53.6]} 6... b6 {[%clk
0:02:58.7]} 7. b3 {[%clk 0:02:53.1]} 7... Bb7 {[%clk 0:02:59]} 8. Bb2 {[%clk
0:02:53.4]} 8... Bd6 {[%clk 0:02:57.2]} 9. O-O {[%clk 0:02:50.3]} 9... O-O
{[%clk 0:02:55.9]} 10. Qc2 {[%clk 0:02:50.3]} 10... h6 {[%clk 0:02:43.6]} 11.
Rad1 {[%clk 0:02:35]} 11... Rc8 {[%clk 0:02:37.2]} 12. e4 {[%clk 0:02:28.3]}
12... dxe4 {[%clk 0:02:37.2]} 13. Nxe4 {[%clk 0:02:27.2]} 13... Nxe4 {[%clk
0:02:37.7]} 14. Bxe4 {[%clk 0:02:28.1]} 14... Nf6 {[%clk 0:02:38.1]} 15. Bd3
{[%clk 0:02:12.6]} 15... c5 {[%clk 0:02:23.1]} 16. d5 {[%clk 0:01:49.1]} 16...
exd5 {[%clk 0:02:19.6]} 17. cxd5 {[%clk 0:01:48.2]} 17... Re8 {[%clk 0:02:16.5]}
18. Bb5 {[%clk 0:01:31.9]} 18... Rf8 {[%clk 0:02:09.6]} 19. Rfe1 {[%clk
0:01:31.2]} 19... a6 {[%clk 0:02:06.5]} 20. Bd3 {[%clk 0:01:24.6]} 20... b5
{[%clk 0:02:04.3]} 21. Bf5 {[%clk 0:01:21.6]} 21... Rc7 {[%clk 0:02:02.6]} 22.
Ne5 {[%clk 0:01:20.7]} 22... Nxd5 {[%clk 0:01:46.2]} 23. Bh7+ {[%clk 0:00:50.2]}
23... Kh8 {[%clk 0:01:45.8]} 24. Be4 {[%clk 0:00:50.2]} 24... Bxe5 {[%clk
0:01:39.8]} 25. Bxe5 {[%clk 0:00:46.7]} 25... Rd7 {[%clk 0:01:40.2]} 26. Qxc5
{[%clk 0:00:35.8]} 26... Nf6 {[%clk 0:01:22.7]} 27. Rxd7 {[%clk 0:00:31]} 27...
Nxd7 {[%clk 0:01:22.3]} 28. Bxg7+ {[%clk 0:00:28.8]} 28... Kxg7 {[%clk
0:01:21.6]} 29. Qd4+ {[%clk 0:00:28.6]} 29... Nf6 {[%clk 0:01:19.6]} 30. Qxd8
{[%clk 0:00:28.6]} 30... Rxd8 {[%clk 0:01:20.5]} 31. Bxb7 {[%clk 0:00:28.1]}
31... a5 {[%clk 0:01:20.4]} 32. Ba6 {[%clk 0:00:27.5]} 32... b4 {[%clk 0:01:20]}
33. Bc4 {[%clk 0:00:25.9]} 33... Rd2 {[%clk 0:01:18.5]} 34. f3 {[%clk
0:00:24.9]} 34... Kf8 {[%clk 0:01:12.7]} 35. Re2 {[%clk 0:00:20.1]} 35... Rxe2
{[%clk 0:01:12.8]} 36. Bxe2 {[%clk 0:00:21]} 36... Nd5 {[%clk 0:01:13.4]} 37.
Kf2 {[%clk 0:00:20.2]} 37... Nc3 {[%clk 0:01:14.3]} 38. Ke3 {[%clk 0:00:20.1]}
38... Nxa2 {[%clk 0:01:14.8]} 39. Kd4 {[%clk 0:00:20.2]} 39... Nc3 {[%clk
0:01:14.6]} 40. Bc4 {[%clk 0:00:19.3]} 40... a4 {[%clk 0:01:13.8]} 41. bxa4
{[%clk 0:00:18.5]} 41... Nxa4 {[%clk 0:01:14.7]} 42. Bb3 {[%clk 0:00:18.2]}
42... Nc3 {[%clk 0:01:14.9]} 43. Kc4 {[%clk 0:00:18.3]} 43... Ne2 {[%clk
0:01:15.1]} 44. Kxb4 {[%clk 0:00:18.2]} 44... Nf4 {[%clk 0:01:15.3]} 45. g3
{[%clk 0:00:18.6]} 45... Nd3+ {[%clk 0:01:15.2]} 46. Kc3 {[%clk 0:00:18.3]}
46... Ne5 {[%clk 0:01:15.7]} 47. Bd5 {[%clk 0:00:18]} 47... Kg7 {[%clk
0:01:14.6]} 48. Kd4 {[%clk 0:00:18]} 48... f6 {[%clk 0:01:14.4]} 49. h3 {[%clk
0:00:16.2]} 49... Ng6 {[%clk 0:01:14.5]} 50. f4 {[%clk 0:00:15.9]} 50... Ne7
{[%clk 0:01:14.3]} 51. Be4 {[%clk 0:00:15.2]} 51... Kf7 {[%clk 0:01:12.6]} 52.
Kc5 {[%clk 0:00:14.1]} 52... Ke6 {[%clk 0:01:11.9]} 53. Bd3 {[%clk 0:00:14]}
53... f5 {[%clk 0:01:06.3]} 54. Bc4+ {[%clk 0:00:13.5]} 54... Kf6 {[%clk
0:01:06.5]} 55. Kd6 {[%clk 0:00:13.4]} 55... Ng6 {[%clk 0:01:06.4]} 56. Bd5
{[%clk 0:00:11.9]} 56... Ne7 {[%clk 0:01:05.2]} 57. Bf3 {[%clk 0:00:11.5]} 57...
Ng6 {[%clk 0:01:05.3]} 58. Bc6 {[%clk 0:00:11.1]} 58... Ne7 {[%clk 0:01:05.7]}
59. Be8 {[%clk 0:00:11.1]} 59... Nc8+ {[%clk 0:01:05.9]} 60. Kd5 {[%clk
0:00:10.6]} 60... Ne7+ {[%clk 0:01:06.8]} 61. Kc5 {[%clk 0:00:10.4]} 61... Nc8
{[%clk 0:01:05.9]} 62. Bd7 {[%clk 0:00:10.1]} 62... Ne7 {[%clk 0:01:06.2]} 63.
Kd6 {[%clk 0:00:09.9]} 63... Ng6 {[%clk 0:01:05.9]} 64. Kc5 {[%clk 0:00:09.3]}
64... Ne7 {[%clk 0:01:05.7]} 65. Bc6 {[%clk 0:00:09.5]} 65... Ng6 {[%clk
0:01:05.3]} 66. Bf3 {[%clk 0:00:09.2]} 66... Ne7 {[%clk 0:01:05.6]} 67. Kd6
{[%clk 0:00:09.3]} 67... Nc8+ {[%clk 0:01:05.5]} 68. Kc7 {[%clk 0:00:09.5]}
68... Ne7 {[%clk 0:01:06]} 69. Kd7 {[%clk 0:00:09.8]} 69... Ng6 {[%clk
0:01:03.2]} 70. Ke8 {[%clk 0:00:09.5]} 70... Ke6 {[%clk 0:00:57.3]} 71. Bh5
{[%clk 0:00:08.6]} 71... Ne7 {[%clk 0:00:57.5]} 72. Kf8 {[%clk 0:00:08.6]} 72...
Kf6 {[%clk 0:00:57.8]} 73. Bf3 {[%clk 0:00:08.4]} 73... Nc8 {[%clk 0:00:57.5]}
74. Kg8 {[%clk 0:00:08.2]} 74... Kg6 {[%clk 0:00:57.9]} 75. h4 {[%clk
0:00:08.2]} 75... h5 {[%clk 0:00:51.4]} 76. Kf8 {[%clk 0:00:07.3]} 76... Nd6
{[%clk 0:00:51.9]} 77. Ke7 {[%clk 0:00:07.3]} 77... Ne4 {[%clk 0:00:52.5]} 78.
Ke6 {[%clk 0:00:06]} 78... Nxg3 {[%clk 0:00:52.4]} 79. Ke5 {[%clk 0:00:05.5]}
79... Kg7 {[%clk 0:00:52.2]} 80. Bg2 {[%clk 0:00:05.1]} 80... Kg6 {[%clk
0:00:52.4]} 81. Bh3 {[%clk 0:00:05.3]} 81... Ne2 {[%clk 0:00:50.6]} 82. Bxf5+
{[%clk 0:00:05.4]} 82... Kg7 {[%clk 0:00:50.9]} 83. Be4 {[%clk 0:00:06]} 83...
Nxf4 {[%clk 0:00:51.2]} 84. Kxf4 {[%clk 0:00:06.1]} 84... Kh8 {[%clk 0:00:52.1]}
85. Bf3 {[%clk 0:00:06.3]} 85... Kg8 {[%clk 0:00:53]} 86. Bxh5 {[%clk
0:00:06.8]} 86... Kh8 {[%clk 0:00:53.9]} 87. Kg5 {[%clk 0:00:07.6]} 87... Kg8
{[%clk 0:00:54.8]} 88. Bg6 {[%clk 0:00:08.5]} 88... Kh8 {[%clk 0:00:55.7]} 89.
h5 {[%clk 0:00:09.4]} 89... Kg8 {[%clk 0:00:56.6]} 90. h6 {[%clk 0:00:10.3]}
90... Kh8 {[%clk 0:00:57.5]} 91. h7 {[%clk 0:00:11.2]} 91... Kg7 {[%clk
0:00:56.1]} 92. Kh5 {[%clk 0:00:10.5]} 92... Kh8 {[%clk 0:00:57]} 93. Kh6 {[%clk
0:00:11.4]} 1/2-1/2